[Event "FIDE WY-U16 Olympiad 2022"]
[Site "Nakhchivan"]
[Date "2022.10.05"]
[Round "4.12"]
[White "kiladze, Luka"]
[Black "Omonova, Umida"]
[Result "1/2-1/2"]
[ECO "D02"]
[WhiteElo "1894"]
[BlackElo "2078"]
[Annotator "TA"]
[PlyCount "162"]
[EventDate "2022.10.02"]
[EventType "team-tourn"]
[EventCountry "AZE"]
[SourceTitle "playchess.com"]
[Source "ChessBase"]
[SourceQuality "1"]
[WhiteTeam "Georgia"]
[BlackTeam "Uzbekistan"]
[WhiteTeamCountry "GEO"]
[BlackTeamCountry "UZB"]
[TimeControl "40/5400+30:1800+30"]

{[%evp 22,161,0,0,0,0,13,0,10,7,8,8,9,0,0,-50,-47,-55,-58,-68,-63,-62,-67,-63,-71,-66,-82,-81,-64,-70,-48,-66,-48,-48,-41,-86,-86,-86,-86,-87,-86,-83,-83,-99,-99,-106,-54,-62,-66,-90,-51,-91,-88,-70,-70,-70,-70,-103,-70,-131,-132,-114,-43,-44,0,0,0,0,0,0,0,0,0,0,0,0,0,0,0,0,0,0,0,0,0,0,0,-8,-8,-8,-8,-8,-8,-8,-8,-8,-7,-8,-8,-8,-8,-8,-8,-8,-8,-8,-8,-8,0,-8,0,-8,-8,-8,-8,-8,-8,-8,-8,-8,-8,-8,-8,-8,0,0,0,-8,0,0,0,0,0,0,0,0,0,0,0,0,0,0]} 1. d4 {[%emt 0:00:05]} d5 {[%emt 0:00:14]} 2. Nf3 {[%emt 0:00:05]} Nf6 {[%emt 0:00:12]} 3. g3 {[%emt 0:00:04]} Bf5 {[%emt 0:02:51]} 4. Bg2 {[%emt 0:00:15]} c6 {[%emt 0:01:59]} 5. O-O {[%emt 0:00:11]} e6 {[%emt 0:01:19]} 6. c4 {[%emt 0:00:40]} Be7 {[%emt 0:01:08]} 7. Nc3 {[%emt 0:00:16]} h6 {[%emt 0:02:04]} 8. Nd2 {[%emt 0:04:59]} O-O {[%emt 0:06:23]} 9. e4 {[%emt 0:01:18]} dxe4 {[%emt 0:00:29]} 10. Ndxe4 {[%emt 0:00:02]} Nbd7 {[%emt 0:02:03]} 11. Qe2 {[%emt 0:03:50]} Nxe4 {[%emt 0:04:08]} 12. Nxe4 {[%emt 0:00:06]} Nf6 {[%emt 0:02:36] D11: Slav Defence: 3 Nf3 sidelines and 3...Nf6 4 e3 Bg4.} 13. Rd1 {[%emt 0:02:02]} Nxe4 {[%emt 0:07:38]} 14. Bxe4 {[%emt 0:00:08]} Bxe4 {[%emt 0:00:41]} 15. Qxe4 {[%emt 0:00:02]} Bf6 {[%emt 0:00:37]} 16. Be3 {[%emt 0:03:54]} Qa5 {[%emt 0:06:34] [#]} 17. Rd2 $146 {[%emt 0:11:19]} ({Predecessor:} 17. d5 exd5 18. cxd5 Rfe8 19. Qc4 Bxb2 20. Rab1 cxd5 21. Rxd5 Qc3 22. Qxc3 Bxc3 23. Rxb7 {1-0 (44) Seibicke,R (2158)-Braeuer,F (1993) Germany 2010}) 17... Rfd8 {[%emt 0:01:55]} 18. a3 {[%emt 0:05:17]} (18. b3 $11) 18... Qa4 $15 {[%emt 0:00:26]} 19. Rc1 {[%emt 0:02:32]} Rd7 {[%emt 0:00:10]} 20. Qc2 {[%emt 0:06:32]} Qxc2 {[%emt 0:03:19]} 21. Rcxc2 {[%emt 0:00:01]} Rad8 {[%emt 0:00:21][%cal Rf6d4]} 22. d5 $1 {[%emt 0:00:01]} exd5 {[%emt 0:00:19]} 23. cxd5 {[%emt 0:00:05]} Rxd5 {[%emt 0:00:08]} 24. Rxd5 {[%emt 0:00:07]} Rxd5 {[%emt 0:00:06]} ({Of course not} 24... cxd5 $6 25. Bxa7 d4 26. Rd2 $11) 25. Bxa7 {[%emt 0:01:57][%mdl 4096] Endgame KRB-KRB} Rd1+ {[%emt 0:00:23]} 26. Kg2 {[%emt 0:00:04]} Rb1 {[%emt 0:00:08]} 27. b4 {[%emt 0:01:00]} Rb3 {[%emt 0:02:02]} 28. Re2 {[%emt 0:02:55]} Rxa3 {[%emt 0:00:26]} 29. Re8+ {[%emt 0:01:18]} Kh7 {[%emt 0:00:09]} 30. Bc5 {[%emt 0:00:16]} Rd3 {[%emt 0:00:16]} 31. Rb8 {[%emt 0:02:09]} Rd7 {[%emt 0:00:11]} 32. f4 {[%emt 0:02:07]} Kg6 {[%emt 0:03:30]} 33. Kf3 {[%emt 0:01:48]} Be7 {[%emt 0:04:13]} (33... Bc3 $17 34. Re8 f5) 34. Bxe7 {[%emt 0:00:28]} Rxe7 {[%emt 0:00:01] KR-KR} 35. g4 {[%emt 0:01:27]} h5 {[%emt 0:02:26]} 36. h3 {[%emt 0:01:15]} hxg4+ {[%emt 0:07:26]} 37. hxg4 {[%emt 0:00:12]} Kf6 {[%emt 0:01:03]} 38. Rd8 {[%emt 0:02:12]} Ke6 {[%emt 0:01:24] Inhibits Rd6+.} 39. Ke4 {[%emt 0:01:30]} Rd7 {[%emt 0:04:38]} 40. f5+ {[%emt 0:03:56]} ({White should try} 40. Re8+ $15 Re7 41. Rd8) 40... Ke7 $17 {[%emt 0:00:45]} 41. Rh8 {[%emt 0:35:33]} Rd5 {[%emt 0:35:09]} ({Better is} 41... Rd8 $17 42. Rh7 Kf6) 42. g5 $1 $15 {[%emt 0:00:35]} Rb5 {[%emt 0:14:45]} (42... f6 $5 {[%cal Rf6g5]} 43. Rh7 Kf7 44. g6+ Kg8 $15) 43. Rh7 {[%emt 0:01:38] The position is equal.} Rxb4+ {[%emt 0:00:06]} 44. Ke5 {[%emt 0:02:11]} Rg4 {[%emt 0:01:07]} 45. f6+ $1 {[%emt 0:01:05]} gxf6+ {[%emt 0:01:32]} 46. gxf6+ {[%emt 0:00:05]} Kf8 {[%emt 0:00:09]} 47. Rh8+ $1 {[%emt 0:00:10]} Rg8 {[%emt 0:03:07]} 48. Rh1 {[%emt 0:01:31] [#] Threatening mate with Ra1.} Rg5+ {[%emt 0:00:58]} 49. Kf4 {[%emt 0:01:27]} Rg6 {[%emt 0:00:08]} 50. Rh8+ {[%emt 0:01:30]} Rg8 {[%emt 0:00:06]} 51. Rh1 {[%emt 0:00:19] White threatens Ra1 and mate.} Ke8 {[%emt 0:06:54] [#] ...Kd7 is the strong threat.} 52. Re1+ {[%emt 0:00:10]} Kd7 {[%emt 0:00:07] Threatens to win with ...Re8.} (52... Kd8 $5 53. Re7 $8 Rg2 $11) 53. Re7+ {[%emt 0:00:08]} Kd6 {[%emt 0:00:04]} 54. Rxb7 {[%emt 0:00:43]} Ke6 {[%emt 0:00:06]} 55. Rc7 {[%emt 0:00:04]} Kxf6 {[%emt 0:00:06]} 56. Rxc6+ {[%emt 0:00:05]} Kg7 {[%emt 0:00:06]} 57. Ra6 {[%emt 0:01:40]} Rb8 {[%emt 0:00:08]} 58. Rc6 {[%emt 0:01:23]} f6 {[%emt 0:00:09]} 59. Ra6 {[%emt 0:00:06]} Kg6 {[%emt 0:00:05]} 60. Rc6 {[%emt 0:00:18]} Rb4+ {[%emt 0:00:08]} 61. Kf3 {[%emt 0:00:12]} Kg5 {[%emt 0:00:09]} 62. Rc3 {[%emt 0:00:17]} f5 {[%emt 0:00:19]} 63. Ra3 {[%emt 0:00:10]} Rh4 {[%emt 0:00:11] ( -> ...Rh3+)} 64. Kg2 {[%emt 0:00:08] Against Rh3} Rh7 {[%emt 0:02:03]} 65. Kf2 {[%emt 0:00:33]} Kg4 {[%emt 0:03:46]} 66. Ra4+ {[%emt 0:01:03]} f4 {[%emt 0:00:06]} 67. Ra3 {[%emt 0:00:05]} Rh2+ {[%emt 0:00:06]} 68. Kf1 $1 {[%emt 0:00:06]} Rc2 {[%emt 0:00:48]} 69. Rb3 {[%emt 0:00:07]} Rd2 {[%emt 0:00:41]} 70. Ra3 {[%emt 0:00:10]} Rb2 {[%emt 0:01:26]} 71. Rc3 {[%emt 0:00:05]} Rb4 {[%emt 0:00:41]} 72. Ra3 {[%emt 0:00:07]} Kf5 {[%emt 0:00:14]} 73. Kf2 {[%emt 0:00:09]} Ke4 {[%emt 0:00:08]} 74. Kf1 {[%emt 0:00:09]} f3 {[%emt 0:00:47]} 75. Ra8 {[%emt 0:00:06]} Ke3 {[%emt 0:00:25]} 76. Re8+ {[%emt 0:00:09]} Re4 {[%emt 0:00:05]} 77. Rxe4+ {[%emt 0:00:06]} Kxe4 {[%emt 0:00:03]} 78. Kf2 {[%emt 0:00:10]} Kf4 {[%emt 0:00:05][%cal Be4f4,Bf4e3,Be3f3][%mdl 32]} 79. Kf1 {[%emt 0:00:05]} Ke3 {[%emt 0:00:04]} (79... Kg3 $5 80. Kg1 $8 Kh4 $11) 80. Ke1 {[%emt 0:00:06]} f2+ {[%emt 0:00:03]} 81. Kf1 {[%emt 0:00:06]} Kf3 {[%emt 0:00:02] Weighted Error Value: White=0.08 (flawless) /Black=0.07 (flawless)} 1/2-1/2

[Event "FIDE WY-U16 Olympiad 2022"]
[Site "Nakhchivan"]
[Date "2022.10.05"]
[Round "4.12"]
[White "Wickramasinghe, Minethma Lasandi"]
[Black "Abbasova, Zarifa"]
[Result "1-0"]
[ECO "B10"]
[WhiteElo "1574"]
[BlackElo "1480"]
[Annotator "NA RC COMBH"]
[PlyCount "95"]
[EventDate "2022.10.02"]
[EventType "team-tourn"]
[EventCountry "AZE"]
[SourceTitle "playchess.com"]
[Source "ChessBase"]
[SourceQuality "1"]
[WhiteTeam "Sri Lanka"]
[BlackTeam "Azerbaijan"]
[WhiteTeamCountry "SRI"]
[BlackTeamCountry "AZE"]
[TimeControl "40/5400+30:1800+30"]

1. e4 {[%emt 0:00:06]} c6 {[%emt 0:00:05]} 2. Nf3 {[%emt 0:03:45]} d5 {[%emt 0:00:05]} 3. Nc3 {[%emt 0:00:06]} dxe4 {[%emt 0:00:34]} 4. Nxe4 {[%emt 0:00:09]} Nf6 {[%emt 0:00:04]} 5. Ng3 {[%emt 0:00:39]} Bg4 {[%emt 0:02:20]} 6. Bc4 {[%emt 0:04:47]} e6 {[%emt 0:01:59]} 7. c3 {[%emt 0:02:51]} Bd6 {[%emt 0:01:15]} 8. d4 {[%emt 0:00:19]} Nbd7 {[%emt 0:01:26]} 9. O-O {[%emt 0:03:03]} O-O {[%emt 0:06:02]} 10. h3 {[%emt 0:05:43]} Bxf3 {[%emt 0:03:07]} 11. Qxf3 {[%emt 0:00:47]} e5 {[%emt 0:01:21]} 12. Nf5 {[%emt 0:13:20]} e4 {[%emt 0:07:27]} 13. Qe3 {[%emt 0:03:10]} Nb6 {[%emt 0:07:41]} 14. Qg5 {[%emt 0:05:14]} g6 {[%emt 0:00:33]} 15. Bb3 {[%emt 0:04:09]} Nh5 {[%emt 0:08:18]} 16. Qg4 {[%emt 0:11:08]} Kh8 {[%emt 0:16:52]} 17. Bg5 {[%emt 0:14:50]} Qd7 {[%emt 0:14:36]} 18. Nxd6 {[%emt 0:03:21]} f5 {[%emt 0:00:38]} 19. Qh4 {[%emt 0:05:26]} Qxd6 {[%emt 0:02:48]} 20. Be7 {[%emt 0:01:28]} Qc7 {[%emt 0:00:15]} 21. Bxf8 {[%emt 0:00:53]} Rxf8 {[%emt 0:00:02]} 22. c4 {[%emt 0:03:54]} Nf4 {[%emt 0:08:45]} 23. Rad1 {[%emt 0:03:31]} a6 {[%emt 0:07:43]} 24. Rfe1 {[%emt 0:02:35]} g5 {[%emt 0:01:03]} 25. Qg3 {[%emt 0:02:52]} Qe7 {[%emt 0:06:13]} 26. Qc3 {[%emt 0:01:33]} Rf6 {[%emt 0:01:26]} 27. d5 {[%emt 0:01:09]} c5 {[%emt 0:00:16]} 28. d6 {[%emt 0:01:05]} Qd8 {[%emt 0:00:01]} 29. d7 {[%emt 0:01:30]} Kg7 {[%emt 0:01:30]} 30. Rd6 {[%emt 0:00:41]} Nxd7 {[%emt 0:00:06]} 31. Ba4 {[%emt 0:00:26]} b5 {[%emt 0:00:38]} 32. cxb5 {[%emt 0:00:31]} Kg6 {[%emt 0:00:37]} 33. Rxf6+ {[%emt 0:00:27]} Nxf6 {[%emt 0:00:05]} 34. bxa6 {[%emt 0:00:57]} Qb6 {[%emt 0:00:10]} 35. Bb3 {[%emt 0:00:49]} Nd3 {[%emt 0:00:18]} 36. Rf1 {[%emt 0:00:24]} Qxa6 {[%emt 0:00:59]} 37. Bc4 {[%emt 0:00:21]} Qd6 {[%emt 0:00:29]} 38. Rd1 {[%emt 0:00:32]} Nh5 39. Bxd3 {[%emt 0:00:43]} exd3 {[%emt 0:01:27]} 40. Qxd3 {[%emt 0:00:30]} Qxd3 {[%emt 0:00:33]} 41. Rxd3 {[%emt 0:30:07]} Nf4 {[%emt 0:30:02]} 42. Rd6+ {[%emt 0:00:54]} Kf7 {[%emt 0:00:02]} 43. a4 {[%emt 0:00:00]} Ke7 {[%emt 0:00:00]} 44. Rd2 {[%emt 0:00:00]} Ne6 {[%emt 0:00:00]} 45. Rd5 {[%emt 0:00:00]} f4 {[%emt 0:00:00]} 46. a5 {[%emt 0:00:00]} c4 {[%emt 0:00:00]} 47. a6 {[%emt 0:00:00]} Nc7 {[%emt 0:00:00]} 48. a7 {[%emt 0:00:00]} 1-0

[Event "FIDE WY-U16 Olympiad 2022"]
[Site "Nakhchivan"]
[Date "2022.10.05"]
[Round "4.13"]
[White "Daneshvar, Bardiya"]
[Black "Azadaliyev, Jahandar"]
[Result "1-0"]
[ECO "A05"]
[WhiteElo "2515"]
[BlackElo "2304"]
[Annotator "TA"]
[PlyCount "73"]
[EventDate "2022.10.02"]
[EventType "team-tourn"]
[EventCountry "AZE"]
[SourceTitle "playchess.com"]
[Source "ChessBase"]
[SourceQuality "1"]
[WhiteTeam "Iran"]
[BlackTeam "Azerbaijan"]
[WhiteTeamCountry "IRI"]
[BlackTeamCountry "AZE"]
[TimeControl "40/5400+30:1800+30"]

{[%evp 15,73,37,41,27,48,33,36,41,51,54,84,52,136,129,135,134,141,139,138,122,137,124,338,327,415,306,294,290,293,288,348,347,366,372,369,368,360,355,474,471,479,489,486,474,498,503,474,454,478,486,472,435,657,652,746,741,1484,1350,29991,29992]} 1. Nf3 {[%emt 0:00:02]} Nf6 {[%emt 0:00:48]} 2. g3 {[%emt 0:00:05]} d5 {[%emt 0:01:25]} 3. Bg2 {[%emt 0:00:13]} e6 {[%emt 0:04:42]} 4. O-O {[%emt 0:00:27]} c5 {[%emt 0:06:42]} 5. c4 {[%emt 0:00:18]} Nc6 {[%emt 0:09:48]} 6. cxd5 {[%emt 0:00:56]} Nxd5 {[%emt 0:08:57]} 7. d4 $1 {[%emt 0:02:33] 7.d4 scores better than 7.Nc3.} cxd4 {[%emt 0:06:04]} 8. Nxd4 {[%emt 0:00:57]} Bd7 {[%emt 0:00:53]} 9. Nb5 {[%emt 0:09:30][%cal Bd4b5,Bb5c3,Bc3e4,Be4g5][%mdl 32] E01: Catalan: Early deviations.} a6 {[%emt 0:16:04]} 10. N5c3 {[%emt 0:00:08]} Nf6 {[%emt 0:02:34]} 11. Nd2 {[%emt 0:03:28] White is slightly better.} Be7 {[%emt 0:02:22]} 12. Nc4 {[%emt 0:02:25] [#]} O-O $146 {[%emt 0:04:48] [#]} ({Predecessor:} 12... Na5 13. Ne5 O-O 14. Be3 Rc8 15. Rc1 h6 16. Qd2 Nc6 17. Nxd7 Nxd7 18. Rfd1 Nde5 {1-0 (73) Grube,A (2104)-Schope,H (2107) GER email 2012}) 13. Be3 $1 {[%emt 0:02:45]} Bb4 {[%emt 0:09:05]} ({Black should play} 13... b5 $14 14. Nb6 Ra7) 14. Nb6 $16 {[%emt 0:09:43]} Rb8 {[%emt 0:00:37]} 15. Ne4 {[%emt 0:02:58] Hoping for Nxf6+.} Nd5 {[%emt 0:03:14]} 16. Nxd5 {[%emt 0:02:34]} exd5 {[%emt 0:00:01]} 17. Qxd5 {[%emt 0:00:18]} Bg4 {[%emt 0:01:28][%csl LRd5,LRe2]} 18. Qc4 $36 {[%emt 0:02:28][%mdl 2048] White is really pushing. White is much more active. The black rooks are badly placed.} Rc8 $2 {[%emt 0:02:09]} (18... Be6 $16 {is a better defense.} 19. Qc2 h6) 19. Ng5 $18 {[%emt 0:07:00]} Bh5 {[%emt 0:03:48]} 20. Qh4 {[%emt 0:03:04]} h6 {[%emt 0:01:50]} 21. Qxh5 {[%emt 0:03:42]} hxg5 {[%emt 0:00:03]} 22. Bxg5 {[%emt 0:01:34] This bishop pair is nice.} ({Don't play} 22. Qxg5 Qxg5 23. Bxg5 Rfe8 $18) 22... Qd4 {[%emt 0:01:01] Against Be4} 23. a3 {[%emt 0:01:13]} g6 {[%emt 0:01:23]} 24. Qf3 {[%emt 0:00:35]} Be7 {[%emt 0:00:28]} 25. Bxe7 {[%emt 0:00:29]} Nxe7 {[%emt 0:00:05]} 26. Qxb7 {[%emt 0:00:23]} Qe5 {[%emt 0:01:08]} 27. Qxa6 {[%emt 0:01:32]} Rc2 {[%emt 0:01:45]} 28. b4 {[%emt 0:01:52]} Rxe2 {[%emt 0:00:12]} 29. Bf3 {[%emt 0:00:29]} Rb2 {[%emt 0:01:22]} 30. Rae1 {[%emt 0:00:08]} Qf5 {[%emt 0:01:31]} 31. Be4 {[%emt 0:00:20]} ({Less strong is} 31. Rxe7 Qxf3 32. Re3 Qf5 $18) 31... Qd7 {[%emt 0:00:51]} 32. Qf6 {[%emt 0:01:42]} Rd2 {[%emt 0:00:13]} 33. Bf3 {[%emt 0:00:25]} Re8 {[%emt 0:00:38]} (33... Qf5 $142 34. Qxe7 Qxf3) 34. Rd1 {[%emt 0:00:16]} Rxd1 {[%emt 0:02:17]} 35. Rxd1 {[%emt 0:00:08]} Qa7 {[%emt 0:00:02]} 36. Re1 {[%emt 0:00:47] [#] White threatens Bd5 and mate.} Qxa3 {[%emt 0:02:38]} 37. Bd5 {[%emt 0:00:12] Black did not feel at home in the position after the opening.  Weighted Error Value: White=0.10 (very precise) /Black=0.55} 1-0

[Event "FIDE WY-U16 Olympiad 2022"]
[Site "Nakhchivan"]
[Date "2022.10.05"]
[Round "4.13"]
[White "Montes Orozco, Miguel Angel"]
[Black "Isfandiyarli, Kamal"]
[Result "1/2-1/2"]
[ECO "D43"]
[WhiteElo "2051"]
[BlackElo "1585"]
[Annotator "TA"]
[PlyCount "143"]
[EventDate "2022.10.02"]
[EventType "team-tourn"]
[EventCountry "AZE"]
[SourceTitle "playchess.com"]
[Source "ChessBase"]
[SourceQuality "1"]
[WhiteTeam "Mexico"]
[BlackTeam "Azerbaijan"]
[WhiteTeamCountry "MEX"]
[BlackTeamCountry "AZE"]
[TimeControl "40/5400+30:1800+30"]

{[%evp 26,143,24,12,15,6,38,28,96,87,153,147,153,-9,-16,-12,-12,-15,0,-34,-34,-46,-37,-32,-27,-27,-18,-27,-14,-14,-10,-21,-16,-12,0,0,6,8,6,6,11,12,14,1,1,0,8,0,0,0,0,0,18,18,18,18,18,18,17,17,17,17,17,17,17,17,17,15,17,20,71,71,71,71,71,71,71,71,71,71,71,71,71,71,71,71,71,71,71,71,71,71,71,71,71,71,71,71,71,71,71,71,72,72,72,72,72,72,72,72,72,72,72,72,72,72,72,71,71,71]} 1. d4 {[%emt 0:00:07]} Nf6 {[%emt 0:01:02]} 2. c4 {[%emt 0:00:14]} e6 {[%emt 0:01:55]} 3. Nf3 {[%emt 0:00:20]} d5 {[%emt 0:00:08]} 4. Nc3 {[%emt 0:00:26]} c6 {[%emt 0:00:15]} 5. cxd5 {[%emt 0:06:47]} exd5 {[%emt 0:01:38]} 6. Bg5 {[%emt 0:00:06]} Be7 {[%emt 0:00:09]} 7. e3 {[%emt 0:00:05]} O-O {[%emt 0:00:08]} 8. Bd3 {[%emt 0:01:32]} Nbd7 {[%emt 0:01:01]} 9. O-O {[%emt 0:00:28]} Re8 {[%emt 0:00:22]} 10. Qc2 {[%emt 0:01:49]} Nf8 {[%emt 0:00:19]} 11. Ne5 {[%emt 0:01:14]} Ng4 {[%emt 0:01:11]} 12. Bxe7 {[%emt 0:01:33]} Qxe7 {[%emt 0:00:14]} 13. Nxg4 {[%emt 0:00:40]} Bxg4 {[%emt 0:00:07]} 14. Rab1 {[%emt 0:05:48]} Qg5 {[%emt 0:07:33] D36: Queen's Gambit Declined: Exchange Variation: Main line (5 Bg5 c6 6 Qc2).} 15. f4 {[%emt 0:06:15]} Qf6 {[%emt 0:09:29]} (15... Qh6) (15... Qh6 $5 {[%cal Re8e3]}) 16. Rbe1 {[%emt 0:00:22]} Rad8 {[%emt 0:06:16] [#]} (16... Qd6) (16... Qd6 $11) 17. f5 $1 $16 {[%emt 0:08:15]} Qg5 {[%emt 0:01:46]} (17... Qh4 $142) 18. Qf2 {[%emt 0:01:44] [#]} ({Resist} 18. e4 $6 h5 $16) 18... Bh5 $146 {[%emt 0:08:32]} ({Predecessor:} 18... h5 19. e4 h4 20. e5 f6 21. Qf4 h3 22. Qxg5 fxg5 23. b4 g6 24. gxh3 Bxh3 25. Rf3 Bxf5 26. Bxf5 gxf5 27. Rxf5 {0-1 (43) Hajiyev,S (2008)-Gur,E (1996) Konya 2017}) 19. f6 $2 {[%emt 0:01:00]} (19. e4 $16) 19... Qxf6 $11 {[%emt 0:02:49]} 20. Qxf6 {[%emt 0:02:44]} gxf6 {[%emt 0:00:05]} 21. Rxf6 {[%emt 0:00:58]} Bg6 {[%emt 0:00:17]} 22. Bxg6 {[%emt 0:03:11]} hxg6 {[%emt 0:06:10]} 23. h4 {[%emt 0:02:42]} Kg7 {[%emt 0:09:04]} 24. Rf3 {[%emt 0:04:02]} Rd6 {[%emt 0:08:20]} 25. Ref1 {[%emt 0:02:17]} Re7 {[%emt 0:02:21]} 26. g4 {[%emt 0:02:50]} Nh7 {[%emt 0:02:07]} 27. g5 {[%emt 0:07:00]} f6 {[%emt 0:00:37]} 28. Rg3 {[%emt 0:02:28]} fxg5 {[%emt 0:08:57]} 29. hxg5 {[%emt 0:00:08]} Rdd7 {[%emt 0:00:28]} 30. Ne2 {[%emt 0:02:33]} Rf7 {[%emt 0:00:06]} 31. Nf4 {[%emt 0:00:18]} Rde7 {[%emt 0:00:49]} 32. b4 {[%emt 0:01:03]} a6 {[%emt 0:02:13]} 33. a4 {[%emt 0:00:11]} Re4 {[%emt 0:00:36]} 34. b5 {[%emt 0:01:19]} axb5 {[%emt 0:05:14]} 35. axb5 {[%emt 0:00:04]} Nf8 {[%emt 0:00:04]} 36. bxc6 {[%emt 0:04:18]} bxc6 {[%emt 0:00:03]} 37. Rc1 {[%emt 0:00:40]} Ne6 {[%emt 0:00:27]} 38. Nd3 {[%emt 0:00:16]} Rf5 {[%emt 0:03:22]} 39. Rxc6 {[%emt 0:00:30] [#] Strongly threatening Nf2.} Rxg5 {[%emt 0:00:06]} 40. Rxg5 {[%emt 0:00:11]} Nxg5 {[%emt 0:00:03][%mdl 4096] Endgame KRN-KRN} 41. Nf4 {[%emt 0:30:08]} Nf3+ {[%emt 0:16:44]} 42. Kf2 {[%emt 0:00:00]} Nxd4 {[%emt 0:00:03]} 43. Rxg6+ {[%emt 0:00:00]} Kf7 {[%emt 0:00:08][%cal Oe4f4] aiming for ...Rxf4+!} 44. Ra6 {[%emt 0:00:00]} ({Don't play} 44. Nxd5 Kxg6 45. Nc3 Rh4 46. exd4 Rxd4 $15) 44... Nc2 {[%emt 0:05:14]} 45. Nxd5 {[%emt 0:00:00]} Re5 {[%emt 0:00:27]} 46. Rf6+ {[%emt 0:00:00]} Kg7 {[%emt 0:00:27]} 47. Rd6 {[%emt 0:00:00]} Nxe3 {[%emt 0:00:21]} 48. Nxe3 {[%emt 0:00:00] KRN-KR. White is better.} Ra5 {[%emt 0:00:27]} 49. Kf3 {[%emt 0:00:00]} Ra4 {[%emt 0:00:10]} 50. Ng2 {[%emt 0:00:00]} Kf7 {[%emt 0:00:07]} 51. Rb6 {[%emt 0:00:00]} Ke7 {[%emt 0:00:06]} 52. Nf4 {[%emt 0:00:00]} Kd7 {[%emt 0:00:07]} 53. Kg4 {[%emt 0:00:00]} Re4 {[%emt 0:00:17]} 54. Kf5 {[%emt 0:00:00]} Re1 {[%emt 0:00:07]} 55. Rh6 {[%emt 0:00:00]} Kc7 {[%emt 0:00:21]} 56. Nd3 {[%emt 0:00:00]} Re2 {[%emt 0:00:18]} 57. Nc5 {[%emt 0:00:00]} Re1 {[%emt 0:00:08]} 58. Ne4 {[%emt 0:00:00]} Ra1 {[%emt 0:00:39]} 59. Ke5 {[%emt 0:00:00]} Ra5+ {[%emt 0:00:08]} 60. Kd4 {[%emt 0:00:00]} Ra1 {[%emt 0:01:38]} 61. Nc3 {[%emt 0:00:00]} Rg1 {[%emt 0:01:18]} 62. Kc5 {[%emt 0:00:00]} Kd7 {[%emt 0:00:35]} 63. Rd6+ {[%emt 0:00:00]} Ke7 {[%emt 0:00:06]} 64. Nd5+ {[%emt 0:00:00]} Kf7 {[%emt 0:00:08]} 65. Rf6+ {[%emt 0:00:00]} Kg7 {[%emt 0:00:07]} 66. Rf2 {[%emt 0:00:00]} Kg6 {[%emt 0:00:40]} 67. Nf4+ {[%emt 0:00:00]} Kg7 {[%emt 0:00:16]} 68. Ne6+ {[%emt 0:00:00]} Kg6 {[%emt 0:00:09]} 69. Kd6 {[%emt 0:00:00]} Ra1 {[%emt 0:00:22]} 70. Nf8+ {[%emt 0:00:00]} Kg5 {[%emt 0:00:09]} 71. Ke7 {[%emt 0:00:00]} Kg4 {[%emt 0:00:52]} 72. Ne6 {[%emt 0:00:00] Weighted Error Value: White=0.08 (flawless) /Black=0.10 (very precise)} 1/2-1/2